fUSD/lending_fUSD_20241222
["ID","MTS","AMOUNT","RATE_DAILY","PERIOD"]
[346261903,1734846643078,-8858.12,0.00019178,2]
[346261904,1734846643087,-12127.48,0.00019178,2]
[346261905,1734846643097,-1255.93,0.00019178,2]
[346261906,1734846643106,-3645.63,0.00019178,2]
[346261907,1734846643115,-1205.34,0.00019178,2]
[346261908,1734846643124,-503.11078902,0.00019178,2]
[346261909,1734846643133,-1715.03,0.00019178,2]
[346261910,1734846643142,-500.0,0.00019178,2]
[346261911,1734846643151,-500.0,0.00019178,2]
[346261912,1734846643161,-4480.86,0.00019178,2]
[346261913,1734846643170,-3057.4,0.00019178,2]
[346261914,1734846643179,-500.0,0.00019178,2]
[346261915,1734846643188,-524.36,0.00019178,2]
[346261916,1734846643197,-500.0,0.00019178,2]
[346261917,1734846643206,-500.0,0.00019178,2]
[346261918,1734846643215,-5775.29,0.00019178,2]
[346261919,1734846643224,-500.0,0.00019178,2]
[346261920,1734846643233,-500.0,0.00019178,2]
[346261921,1734846643244,-508.59,0.00019178,2]
[346261922,1734846643254,-957.16,0.00019178,2]
[346261923,1734846643263,-542.54,0.00019178,2]
[346261924,1734846643273,-500.0,0.00019178,2]
[346261925,1734846643283,-500.0,0.00019178,2]
[346261926,1734846643292,-757.0,0.00019178,2]
[346261927,1734846643301,-500.0,0.00019178,2]
[346261928,1734846643310,-2588.91,0.00019178,2]
[346261929,1734846643319,-500.0,0.00019178,2]
[346261930,1734846643328,-500.0,0.00019178,2]
[346261931,1734846643338,-705.31,0.00019178,2]
[346261932,1734846643347,-500.0,0.00019178,2]
[346261933,1734846643356,-4688.98,0.00019178,2]
[346261934,1734846643539,-500.0,0.00019178,2]
[346261935,1734846643551,-500.0,0.00019178,2]
[346261936,1734846643561,-500.0,0.00019178,2]
[346261937,1734846643571,-500.0,0.00019178,2]
[346261938,1734846643581,-500.0,0.00019178,2]
[346261939,1734846643592,-2010.0,0.00019185,2]
[346261940,1734846643602,-1265.0,0.00019185,2]
[346261941,1734846643613,-150.0,0.00019185,2]
[346261942,1734846643623,-633.0,0.00019185,2]
[346261943,1734846643632,-565.0,0.00019185,2]
[346261944,1734846643642,-1898.0,0.00019185,2]
[346261945,1734846643652,-1256.0,0.00019185,2]
[346261946,1734846643661,-634.099,0.00019185,2]
[346261947,1734846643671,-3770.0,0.00019185,2]
[346261948,1734846643681,-818.0,0.00019185,2]
[346261949,1734846643690,-536.0,0.00019185,2]
[346261950,1734846643700,-3682.0,0.00019185,2]
[346261951,1734846643709,-3886.0,0.00019185,2]
[346261952,1734846643718,-150.0,0.00019185,2]
[346261953,1734846643727,-150.0,0.00019185,2]
[346261954,1734846643736,-152.95519855,0.00019202,2]
[346261955,1734846643746,-381.416,0.00019215,2]
[346261956,1734846643755,-206.44178408,0.00019216,2]
[346261957,1734846643764,-252.95,0.00019218,2]
[346261958,1734846643773,-206.44178408,0.00019285,2]
[346261959,1734846643783,-152.95519855,0.00019327,2]
[346261960,1734846643792,-206.44178408,0.00019354,2]
[346261961,1734846643801,-206.44178408,0.00019424,2]
[346261962,1734846643810,-152.95519855,0.00019451,2]
[346261963,1734846643821,-1504.0,0.00019452,2]
[346261964,1734846643831,-151627.34820672,0.00019452,3]
[346261965,1734846643849,-4731.44833607,0.00019452,3]
[346261966,1734846643861,-2162.88066878,0.00019452,3]
[346261967,1734846643872,-6750.7866113,0.00019452,3]
[346261968,1734846644197,-3427.16215668,0.00019452,3]
[346261990,1734846646283,-13917.51677167,0.00019452,3]
[346261991,1734846646294,-2312.42048,0.00019452,3]
[346261994,1734847003003,1000.0,0.0002,120]
[346261995,1734847019430,5670.9,0.00015,2]
[346261996,1734847105543,155.31,0.00010137,2]
[346261997,1734847488786,6105774.98523748,0.0002,120]
[346261998,1734847488832,17000000.0,0.0002,120]
[346261999,1734847568466,10764.25928847,0.0001,2]
[346262000,1734847708887,18995.2123741,0.00019,120]
[346262009,1734847832140,-495.79962012,0.000163,2]
[346262010,1734847832151,-478.31588386,0.000163,2]
[346262011,1734847832308,-1025.88449602,0.000163,2]
[346262012,1734847832317,-207.07,0.00016333,2]
[346262013,1734847832327,-150.0,0.00017482,2]
[346262014,1734847832335,-2000.0,0.000179,7]
[346262015,1734847832344,-155.31,0.00018065,2]
[346262016,1734847832353,-102.77978864,0.00018267,2]
[346262053,1734847833213,313.0,0.00019,59]
[346262054,1734847837992,-47.22021136,0.00018267,2]
[346262055,1734847838002,-639.01042178,0.00018267,2]
[346262056,1734847838120,-3246.98957822,0.00018267,2]
[346262057,1734847838130,-250.0,0.00018303,2]
[346262058,1734847838139,-151.77,0.00018347,2]
[346262059,1734847838149,-207.07,0.00018597,2]
[346262060,1734847838158,-267.3,0.00018627,2]
[346262061,1734847838167,-1000.0,0.00018637,2]
[346262062,1734847838176,-1505.63,0.00018678,2]
[346262063,1734847838186,-5439.29754857,0.000188,7]
[346262064,1734847838195,-390.052,0.0001881,2]
[346262065,1734847838204,-300.0,0.00018999,2]
[346262066,1734847838213,-1118.6,0.00019,3]
[346262067,1734847838222,-1002.0,0.00019,3]
[346262068,1734847838231,-758.0,0.00019,5]
[346262069,1734847838242,-1000.0,0.00019,3]
[346262070,1734847838251,-152.95519855,0.00019078,2]
[346262071,1734847838261,-3372.0,0.00019078,2]
[346262072,1734847838270,-470.5984,0.00019078,2]
[346262073,1734847838280,-55555.0,0.00019078,2]
[346262074,1734847838291,-500.0,0.00019178,2]
[346262075,1734847838302,-500.0,0.00019178,2]
[346262076,1734847838313,-500.0,0.00019178,2]
[346262077,1734847838322,-500.0,0.00019178,2]
[346262078,1734847838332,-500.0,0.00019178,2]
[346262079,1734847838341,-500.0,0.00019178,2]
[346262080,1734847838350,-500.0,0.00019178,2]
[346262081,1734847838360,-500.0,0.00019178,2]
[346262082,1734847838371,-500.0,0.00019178,2]
[346262083,1734847838383,-193.32504321,0.00019178,2]
[346262084,1734847838394,-506.26064559,0.00019178,2]
[346262085,1734847838405,-500.0,0.00019178,2]
[346262086,1734847838415,-500.0,0.00019178,2]
[346262087,1734847838424,-500.0,0.00019178,2]
[346262088,1734847838434,-500.0,0.00019178,2]
[346262089,1734847838443,-500.0,0.00019178,2]
[346262091,1734847838454,-500.0,0.00019178,2]
[346262093,1734847838464,-500.0,0.00019178,2]
[346262095,1734847838473,-433.61339293,0.00019178,2]
[346262097,1734847838483,-598.25,0.00019178,2]
[346262099,1734847838493,-509.11548842,0.00019178,2]
[346262101,1734847838502,-500.0,0.00019178,2]
[346262103,1734847838512,-500.0,0.00019178,2]
[346262104,1734847838523,-500.0,0.00019178,2]
[346262105,1734847838532,-425.70677319,0.00019178,2]
[346262106,1734847838542,-500.0,0.00019178,2]
[346262107,1734847838551,-500.0,0.00019178,2]
[346262108,1734847838565,-500.0,0.00019178,2]
[346262109,1734847838574,-503.84060542,0.00019178,2]
[346262110,1734847838584,-500.0,0.00019178,2]
[346262111,1734847838593,-500.0,0.00019178,2]
[346262112,1734847838602,-500.0,0.00019178,2]
[346262113,1734847838614,-500.0,0.00019178,2]
[346262114,1734847838625,-500.0,0.00019178,2]
[346262115,1734847838634,-500.0,0.00019178,2]
[346262116,1734847838643,-500.0,0.00019178,2]
[346262117,1734847838653,-500.0,0.00019178,2]
[346262118,1734847838662,-513.23721472,0.00019178,2]
[346262119,1734847838671,-500.0,0.00019178,2]
[346262120,1734847838679,-500.0,0.00019178,2]
[346262121,1734847838689,-500.0,0.00019178,2]
[346262122,1734847838699,-509.35749018,0.00019178,2]
[346262123,1734847838711,-500.0,0.00019178,2]
[346262124,1734847838720,-500.0,0.00019178,2]
[346262125,1734847838729,-522.4,0.00019178,2]
[346262126,1734847838741,-537.69176649,0.00019178,2]
[346262127,1734847838751,-500.0,0.00019178,2]
[346262128,1734847838761,-501.81777209,0.00019178,2]
[346262129,1734847838770,-500.0,0.00019178,2]
[346262130,1734847838779,-500.0,0.00019178,2]
[346262131,1734847838788,-500.0,0.00019178,2]
[346262132,1734847838797,-500.0,0.00019178,2]
[346262133,1734847838806,-500.0,0.00019178,2]
[346262134,1734847838815,-500.0,0.00019178,2]
[346262135,1734847838826,-500.0,0.00019178,2]
[346262136,1734847838835,-500.0,0.00019178,2]
[346262137,1734847838845,-500.0,0.00019178,2]
[346262138,1734847838854,-153.566144,0.00019178,2]
[346262139,1734847838863,-1479.722287,0.00019178,2]
[346262140,1734847838872,-500.0,0.00019178,2]
[346262141,1734847838882,-500.0,0.00019178,2]
[346262142,1734847838891,-500.0,0.00019178,2]
[346262143,1734847838900,-500.0,0.00019178,2]
[346262144,1734847838909,-505.98135549,0.00019178,2]
[346262145,1734847838918,-1114.782397,0.00019178,2]
[346262146,1734847838927,-500.0,0.00019178,2]
[346262147,1734847838936,-500.0,0.00019178,2]
[346262148,1734847838945,-500.0,0.00019178,2]
[346262149,1734847838955,-507.30532555,0.00019178,2]
[346262150,1734847838964,-500.0,0.00019178,2]
[346262151,1734847838973,-500.0,0.00019178,2]
[346262152,1734847838983,-500.0,0.00019178,2]
[346262153,1734847838993,-500.0,0.00019178,2]
[346262154,1734847839002,-336.10433284,0.00019178,2]
[346262155,1734847839012,-500.0,0.00019178,2]
[346262156,1734847839021,-509.89365577,0.00019178,2]
[346262157,1734847839030,-500.0,0.00019178,2]
[346262158,1734847839039,-500.0,0.00019178,2]
[346262159,1734847839049,-500.0,0.00019178,2]
[346262160,1734847839058,-500.0,0.00019178,2]
[346262161,1734847839067,-500.00000076,0.00019178,2]
[346262162,1734847839076,-534.85,0.00019178,2]
[346262163,1734847839085,-500.0,0.00019178,2]
[346262164,1734847839094,-500.0,0.00019178,2]
[346262165,1734847839104,-500.0,0.00019178,2]
[346262166,1734847839113,-500.0,0.00019178,2]
[346262167,1734847839122,-500.0,0.00019178,2]
[346262168,1734847839132,-500.0,0.00019178,2]
[346262169,1734847839141,-500.0,0.00019178,2]
[346262170,1734847839153,-500.0,0.00019178,2]
[346262171,1734847839163,-500.0,0.00019178,2]
[346262172,1734847839173,-500.0,0.00019178,2]
[346262173,1734847839182,-500.0,0.00019178,2]
[346262174,1734847839191,-434.17495684,0.00019178,2]
[346262175,1734847839200,-500.0,0.00019178,2]
[346262176,1734847839210,-500.0,0.00019178,2]
[346262177,1734847839219,-500.0,0.00019178,2]
[346262178,1734847839228,-500.0,0.00019178,2]
[346262179,1734847839239,-500.0,0.00019178,2]
[346262180,1734847839248,-501.93,0.00019178,2]
[346262181,1734847839257,-500.0,0.00019178,2]
[346262182,1734847839267,-500.0,0.00019178,2]
[346262183,1734847839277,-500.0,0.00019178,2]
[346262184,1734847839286,-239.70438568,0.00019178,2]
[346262185,1734847839295,-500.0,0.00019178,2]
[346262186,1734847839305,-500.0,0.00019178,2]
[346262187,1734847839314,-500.0,0.00019178,2]
[346262188,1734847839324,-500.0,0.00019178,2]
[346262189,1734847839334,-500.0,0.00019178,2]
[346262190,1734847839344,-500.0,0.00019178,2]
[346262191,1734847839353,-500.0,0.00019178,2]
[346262192,1734847839362,-500.0,0.00019178,2]
[346262193,1734847839371,-1047.82,0.00019178,2]
[346262194,1734847839380,-500.0,0.00019178,2]
[346262195,1734847839389,-574.22,0.00019178,2]
[346262196,1734847839400,-508.72466865,0.00019178,2]
[346262197,1734847839409,-500.0,0.00019178,2]
[346262198,1734847839418,-500.0,0.00019178,2]
[346262199,1734847839427,-500.0,0.00019178,2]
[346262200,1734847839437,-218.82357151,0.00019178,2]
[346262201,1734847839446,-500.0,0.00019178,2]
[346262202,1734847839455,-500.0,0.00019178,2]
[346262203,1734847839465,-500.0,0.00019178,2]
[346262204,1734847839475,-500.0,0.00019178,2]
[346262205,1734847839484,-500.0,0.00019178,2]
[346262206,1734847839493,-500.0,0.00019178,2]
[346262207,1734847839502,-168.31273836,0.00019178,2]
[346262208,1734847839511,-990.03,0.00019178,2]
[346262209,1734847839520,-500.0,0.00019178,2]
[346262210,1734847839530,-500.0,0.00019178,2]
[346262211,1734847839539,-500.0,0.00019178,2]
[346262212,1734847839548,-658.63,0.00019178,2]
[346262213,1734847839557,-500.0,0.00019178,2]
[346262214,1734847839566,-500.0,0.00019178,2]
[346262215,1734847839575,-500.0,0.00019178,2]
[346262216,1734847839584,-617.37,0.00019178,2]
[346262217,1734847839594,-500.0,0.00019178,2]
[346262218,1734847839605,-612.28586769,0.00019178,2]
[346262219,1734847839616,-500.0,0.00019178,2]
[346262220,1734847839625,-500.0,0.00019178,2]
[346262221,1734847839635,-500.0,0.00019178,2]
[346262222,1734847839645,-500.0,0.00019178,2]
[346262223,1734847839654,-500.0,0.00019178,2]
[346262224,1734847839665,-500.0,0.00019178,2]
[346262225,1734847839675,-500.87911412,0.00019178,2]
[346262226,1734847839686,-500.0,0.00019178,2]
[346262227,1734847839696,-500.0,0.00019178,2]
[346262228,1734847839709,-500.0,0.00019178,2]
[346262229,1734847839720,-500.0,0.00019178,2]
[346262230,1734847839729,-399.46492468,0.00019178,2]
[346262231,1734847839739,-500.0,0.00019178,2]
[346262232,1734847839749,-500.0,0.00019178,2]
[346262233,1734847839758,-500.0,0.00019178,2]
[346262234,1734847839767,-612.90779466,0.00019178,2]
[346262235,1734847839776,-500.0,0.00019178,2]
[346262236,1734847839785,-500.0,0.00019178,2]
[346262237,1734847839794,-500.0,0.00019178,2]
[346262238,1734847839804,-500.0,0.00019178,2]
[346262239,1734847839813,-500.0,0.00019178,2]
[346262240,1734847839822,-511.51454875,0.00019178,2]
[346262241,1734847839831,-500.0,0.00019178,2]
[346262242,1734847839841,-500.0,0.00019178,2]
[346262243,1734847839850,-500.0,0.00019178,2]
[346262244,1734847839859,-517.5,0.00019178,2]
[346262245,1734847839869,-162.41697387,0.00019178,2]
[346262246,1734847839878,-500.0,0.00019178,2]
[346262247,1734847839887,-500.0,0.00019178,2]
[346262248,1734847839896,-294.97926032,0.00019178,2]
[346262249,1734847839906,-500.0,0.00019178,2]
[346262250,1734847839915,-500.0,0.00019178,2]
[346262251,1734847839925,-500.0,0.00019178,2]
[346262252,1734847839934,-2052.39,0.00019178,2]
[346262253,1734847839943,-500.0,0.00019178,2]
[346262254,1734847839952,-500.0,0.00019178,2]
[346262255,1734847839961,-500.0,0.00019178,2]
[346262256,1734847839971,-501.91289423,0.00019178,2]
[346262257,1734847839980,-500.0,0.00019178,2]
[346262258,1734847839989,-500.0,0.00019178,2]
[346262259,1734847839999,-500.0,0.00019178,2]
[346262260,1734847840008,-500.0,0.00019178,2]
[346262261,1734847840017,-500.0,0.00019178,2]
[346262262,1734847840027,-501.11,0.00019178,2]
[346262263,1734847840036,-500.0,0.00019178,2]
[346262264,1734847840045,-500.0,0.00019178,2]
[346262265,1734847840055,-500.0,0.00019178,2]
[346262266,1734847840064,-500.0,0.00019178,2]
[346262267,1734847840073,-500.0,0.00019178,2]
[346262268,1734847840083,-505.08743774,0.00019178,2]
[346262269,1734847840092,-500.0,0.00019178,2]
[346262271,1734847840101,-500.0,0.00019178,2]
[346262272,1734847840111,-957.05,0.00019178,2]
[346262274,1734847840120,-500.0,0.00019178,2]
[346262275,1734847840129,-500.0,0.00019178,2]
[346262276,1734847840138,-500.0,0.00019178,2]
[346262277,1734847840147,-500.0,0.00019178,2]
[346262278,1734847840156,-592.03501842,0.00019178,2]
[346262279,1734847840165,-703.22,0.00019178,2]
[346262280,1734847840175,-500.0,0.00019178,2]
[346262281,1734847840183,-500.0,0.00019178,2]
[346262282,1734847840193,-500.0,0.00019178,2]
[346262283,1734847840202,-499.59686924,0.00019178,2]
[346262284,1734847840211,-188.34175445,0.00019178,2]
[346262285,1734847840220,-500.0,0.00019178,2]
[346262286,1734847840229,-500.0,0.00019178,2]
[346262287,1734847840238,-500.0,0.00019178,2]
[346262288,1734847840247,-1005.27,0.00019178,2]
[346262289,1734847840256,-500.0,0.00019178,2]
[346262290,1734847840265,-500.0,0.00019178,2]
[346262291,1734847840274,-619.55,0.00019178,2]
[346262292,1734847840283,-500.0,0.00019178,2]
[346262293,1734847840292,-500.0,0.00019178,2]
[346262294,1734847840301,-500.0,0.00019178,2]
[346262295,1734847840310,-185.48772561,0.00019178,2]
[346262296,1734847840319,-500.0,0.00019178,2]
[346262297,1734847840328,-500.0,0.00019178,2]
[346262298,1734847840337,-500.0,0.00019178,2]
[346262299,1734847840346,-500.0,0.00019178,2]
[346262300,1734847840355,-507.74826845,0.00019178,2]
[346262301,1734847840364,-1648.16,0.00019178,2]
[346262302,1734847840373,-500.0,0.00019178,2]
[346262303,1734847840382,-500.0,0.00019178,2]
[346262304,1734847840391,-500.0,0.00019178,2]
[346262305,1734847840399,-500.0,0.00019178,2]
[346262306,1734847840408,-339.73666237,0.00019178,2]
[346262307,1734847840417,-518.67,0.00019178,2]
[346262308,1734847840426,-500.0,0.00019178,2]
[346262309,1734847840435,-686.02,0.00019178,2]
[346262310,1734847840444,-500.0,0.00019178,2]
[346262311,1734847840453,-394.90804089,0.00019178,2]
[346262312,1734847840462,-500.0,0.00019178,2]
[346262313,1734847840471,-552.04003189,0.00019178,2]
[346262314,1734847840480,-500.0,0.00019178,2]
[346262315,1734847840490,-500.0,0.00019178,2]
[346262316,1734847840500,-500.0,0.00019178,2]
[346262317,1734847840509,-500.0,0.00019178,2]
[346262318,1734847840518,-500.0,0.00019178,2]
[346262319,1734847840527,-500.0,0.00019178,2]
[346262320,1734847840536,-885.04,0.00019178,2]
[346262321,1734847840545,-500.0,0.00019178,2]
[346262322,1734847840558,-500.0,0.00019178,2]
[346262323,1734847840567,-500.0,0.00019178,2]
[346262324,1734847840576,-500.0,0.00019178,2]
[346262325,1734847840585,-500.0,0.00019178,2]
[346262326,1734847840594,-500.0,0.00019178,2]
[346262327,1734847840603,-500.0,0.00019178,2]
[346262328,1734847840613,-500.0,0.00019178,2]
[346262329,1734847840622,-500.0,0.00019178,2]
[346262330,1734847840631,-500.0,0.00019178,2]
[346262331,1734847840640,-512.5543312,0.00019178,2]
[346262332,1734847840649,-500.0,0.00019178,2]
[346262333,1734847840658,-500.0,0.00019178,2]
[346262334,1734847840667,-500.0,0.00019178,2]
[346262335,1734847840676,-500.0,0.00019178,2]
[346262336,1734847840686,-500.0,0.00019178,2]
[346262337,1734847840695,-500.0,0.00019178,2]
[346262338,1734847840705,-500.0,0.00019178,2]
[346262339,1734847840716,-500.0,0.00019178,2]
[346262340,1734847840726,-1131.58,0.00019178,2]
[346262341,1734847840737,-500.0,0.00019178,2]
[346262342,1734847840747,-500.0,0.00019178,2]
[346262343,1734847840756,-500.0,0.00019178,2]
[346262344,1734847840766,-500.0,0.00019178,2]
[346262345,1734847840775,-500.0,0.00019178,2]
[346262346,1734847840786,-490.54419275,0.00019178,2]
[346262347,1734847840796,-825.3,0.00019178,2]
[346262348,1734847840805,-500.0,0.00019178,2]
[346262349,1734847840815,-500.0,0.00019178,2]
[346262350,1734847840824,-500.0,0.00019178,2]
[346262351,1734847840833,-500.0,0.00019178,2]
[346262352,1734847840842,-500.0,0.00019178,2]
[346262353,1734847840851,-500.0,0.00019178,2]
[346262354,1734847840860,-500.0,0.00019178,2]
[346262355,1734847840869,-500.0,0.00019178,2]
[346262356,1734847840878,-500.0,0.00019178,2]
[346262357,1734847840887,-500.0,0.00019178,2]
[346262358,1734847840897,-392.33277458,0.00019178,2]
[346262359,1734847840906,-500.0,0.00019178,2]
[346262360,1734847840915,-500.0,0.00019178,2]
[346262361,1734847840925,-500.0,0.00019178,2]
[346262362,1734847840934,-500.0,0.00019178,2]
[346262363,1734847840943,-500.0,0.00019178,2]
[346262364,1734847840952,-500.0,0.00019178,2]
[346262365,1734847840961,-1466.94,0.00019178,2]
[346262366,1734847840970,-500.0,0.00019178,2]
[346262367,1734847840978,-505.28336155,0.00019178,2]
[346262368,1734847840987,-500.0,0.00019178,2]
[346262369,1734847840996,-500.0,0.00019178,2]
[346262370,1734847841005,-504.80212413,0.00019178,2]
[346262371,1734847841015,-500.0,0.00019178,2]
[346262372,1734847841028,-500.0,0.00019178,2]
[346262373,1734847841047,-500.0,0.00019178,2]
[346262374,1734847841060,-500.0,0.00019178,2]
[346262375,1734847841070,-500.0,0.00019178,2]
[346262376,1734847841079,-500.0,0.00019178,2]
[346262377,1734847841088,-500.0,0.00019178,2]
[346262378,1734847841098,-500.0,0.00019178,2]
[346262379,1734847841107,-500.0,0.00019178,2]
[346262380,1734847841117,-500.0,0.00019178,2]
[346262381,1734847841126,-651.35,0.00019178,2]
[346262382,1734847841135,-500.0,0.00019178,2]
[346262383,1734847841143,-1972.05,0.00019178,2]
[346262384,1734847841152,-538.02967903,0.00019178,2]
[346262385,1734847841161,-1299.56,0.00019178,2]
[346262386,1734847841170,-500.0,0.00019178,2]
[346262387,1734847841179,-500.0,0.00019178,2]
[346262388,1734847841188,-965.84,0.00019178,2]
[346262389,1734847841197,-500.0,0.00019178,2]
[346262390,1734847841207,-500.0,0.00019178,2]
[346262391,1734847841216,-500.0,0.00019178,2]
[346262392,1734847841225,-647.98,0.00019178,2]
[346262393,1734847841236,-500.0,0.00019178,2]
[346262394,1734847841245,-500.0,0.00019178,2]
[346262395,1734847841255,-500.0,0.00019178,2]
[346262396,1734847841264,-500.0,0.00019178,2]
[346262397,1734847841273,-1636.09,0.00019178,2]
[346262398,1734847841283,-500.0,0.00019178,2]
[346262399,1734847841292,-500.0,0.00019178,2]
[346262400,1734847841303,-500.0,0.00019178,2]
[346262401,1734847841313,-500.0,0.00019178,2]
[346262402,1734847841323,-500.0,0.00019178,2]
[346262403,1734847841331,-500.0,0.00019178,2]
[346262404,1734847841341,-500.0,0.00019178,2]
[346262405,1734847841351,-500.0,0.00019178,2]
[346262406,1734847841360,-500.0,0.00019178,2]
[346262407,1734847841370,-500.0,0.00019178,2]
[346262408,1734847841379,-2909.49,0.00019178,2]
[346262409,1734847841388,-500.0,0.00019178,2]
[346262410,1734847841397,-500.0,0.00019178,2]
[346262411,1734847841406,-500.0,0.00019178,2]
[346262412,1734847841416,-500.0,0.00019178,2]
[346262413,1734847841425,-500.0,0.00019178,2]
[346262414,1734847841434,-500.0,0.00019178,2]
[346262415,1734847841444,-500.0,0.00019178,2]
[346262416,1734847841453,-1039.7,0.00019178,2]
[346262417,1734847841462,-500.0,0.00019178,2]
[346262418,1734847841471,-500.0,0.00019178,2]
[346262419,1734847841482,-1238.66,0.00019178,2]
[346262420,1734847841491,-5341.9,0.00019178,2]
[346262421,1734847841501,-689.47,0.00019178,2]
[346262422,1734847841511,-929.08,0.00019178,2]
[346262423,1734847841520,-500.0,0.00019178,2]
[346262424,1734847841531,-912.88,0.00019178,2]
[346262425,1734847841541,-500.0,0.00019178,2]
[346262426,1734847841551,-500.0,0.00019178,2]
[346262427,1734847841562,-500.0,0.00019178,2]
[346262428,1734847841572,-500.0,0.00019178,2]
[346262429,1734847841743,-500.0,0.00019178,2]
[346262430,1734847841753,-572.55,0.00019178,2]
[346262431,1734847841763,-500.0,0.00019178,2]
[346262432,1734847841772,-833.04,0.00019178,2]
[346262433,1734847841782,-559.78,0.00019178,2]
[346262434,1734847841792,-500.0,0.00019178,2]
[346262435,1734847841802,-500.0,0.00019178,2]
[346262436,1734847841813,-805.32,0.00019178,2]
[346262437,1734847841822,-500.0,0.00019178,2]
[346262438,1734847841832,-5442.91,0.00019178,2]
[346262439,1734847841841,-500.0,0.00019178,2]
[346262440,1734847841851,-500.0,0.00019178,2]
[346262441,1734847841860,-500.0,0.00019178,2]
[346262442,1734847841871,-498.75085024,0.00019178,2]
[346262443,1734847841881,-500.0,0.00019178,2]
[346262444,1734847841890,-762.76,0.00019178,2]
[346262445,1734847841900,-500.0,0.00019178,2]
[346262446,1734847841909,-596.87,0.00019178,2]
[346262447,1734847841919,-500.0,0.00019178,2]
[346262448,1734847841928,-667.71,0.00019178,2]
[346262449,1734847841938,-937.27,0.00019178,2]
[346262450,1734847841947,-925.78,0.00019178,2]
[346262451,1734847841956,-2145.94,0.00019178,2]
[346262452,1734847841965,-2070.7,0.00019178,2]
[346262453,1734847841975,-500.0,0.00019178,2]
[346262454,1734847841983,-500.0,0.00019178,2]
[346262455,1734847841994,-1441.66,0.00019178,2]
[346262456,1734847842003,-2953.0,0.00019178,2]
[346262457,1734847842013,-648.61,0.00019178,2]
[346262458,1734847842023,-757.05,0.00019178,2]
[346262459,1734847842033,-649.34,0.00019178,2]
[346262460,1734847842042,-500.0,0.00019178,2]
[346262461,1734847842051,-500.0,0.00019178,2]
[346262462,1734847842061,-500.0,0.00019178,2]
[346262463,1734847842070,-500.0,0.00019178,2]
[346262464,1734847842080,-500.0,0.00019178,2]
[346262465,1734847842089,-500.0,0.00019178,2]
[346262466,1734847842098,-1199.7,0.00019178,2]
[346262467,1734847842108,-500.0,0.00019178,2]
[346262468,1734847842117,-15693.36,0.00019178,2]
[346262469,1734847842126,-4516.1,0.00019178,2]
[346262470,1734847842135,-1599.75,0.00019178,2]
[346262471,1734847842145,-500.0,0.00019178,2]
[346262472,1734847842154,-3975.06,0.00019178,2]
[346262473,1734847842163,-500.0,0.00019178,2]
[346262474,1734847842172,-677.52,0.00019178,2]
[346262475,1734847842182,-796.34,0.00019178,2]
[346262476,1734847842192,-584.58,0.00019178,2]
[346262477,1734847842201,-833.53,0.00019178,2]
[346262478,1734847842210,-500.0,0.00019178,2]